Workbook

Sheet hellscriber
A1: TICKER --> | B1: A | C1: … | D1: … | E1: … | F1: … | G1: B | H1: … | I1: … | J1: … | K1: C | L1: … | M1: …
A2: row 1 | D2: 1 | E2: 1 | G2: 1 | H2: 1 | L2: 1 | M2: 1
A3: row 2 | C3: 1 | E3: 1 | G3: 1 | I3: 1 | K3: 1
A4: row 3 | C4: 1 | E4: 1 | G4: 1 | I4: 1 | K4: 1
A5: row 4 | C5: 1 | D5: 1 | E5: 1 | G5: 1 | H5: 1 | K5: 1
A6: row 5 | B6: 1 | E6: 1 | G6: 1 | H6: 1 | I6: 1 | K6: 1
A7: row 6 | B7: 1 | E7: 1 | G7: 1 | I7: 1 | K7: 1
A8: row 7 | B8: 1 | E8: 1 | G8: 1 | I8: 1 | K8: 1
A9: row 8 | B9: 1 | E9: 1 | G9: 1 | H9: 1 | I9: 1 | L9: 1 | M9: 1
A10: Noise | B10: 0.99 | C10: ENCODER
A11: patterns / amplitude -->
A12: [,1] | B12: =$B$10*(RAND()-0.5)+B$2*pattern!$B$3+B$3*pattern!$B$4+B$4*pattern!$B$5+B$5*pattern!$B$6+B$6*pattern!$B$7+B$7*pattern!$B$8+B$8*pattern!$B$9+B$9*pattern!$B$10 -> 4.081276588 | C12: =$B$10*(RAND()-0.5)+C$2*pattern!$B$3+C$3*pattern!$B$4+C$4*pattern!$B$5+C$5*pattern!$B$6+C$6*pattern!$B$7+C$7*pattern!$B$8+C$8*pattern!$B$9+C$9*pattern!$B$10 -> 3.388727427 | D12: =$B$10*(RAND()-0.5)+D$2*pattern!$B$3+D$3*pattern!$B$4+D$4*pattern!$B$5+D$5*pattern!$B$6+D$6*pattern!$B$7+D$7*pattern!$B$8+D$8*pattern!$B$9+D$9*pattern!$B$10 -> 1.533887359 | E12: =$B$10*(RAND()-0.5)+E$2*pattern!$B$3+E$3*pattern!$B$4+E$4*pattern!$B$5+E$5*pattern!$B$6+E$6*pattern!$B$7+E$7*pattern!$B$8+E$8*pattern!$B$9+E$9*pattern!$B$10 -> 7.539893541 | F12: =$B$10*(RAND()-0.5)+F$2*pattern!$B$3+F$3*pattern!$B$4+F$4*pattern!$B$5+F$5*pattern!$B$6+F$6*pattern!$B$7+F$7*pattern!$B$8+F$8*pattern!$B$9+F$9*pattern!$B$10 -> 0.07369334997 | G12: =$B$10*(RAND()-0.5)+G$2*pattern!$B$3+G$3*pattern!$B$4+G$4*pattern!$B$5+G$5*pattern!$B$6+G$6*pattern!$B$7+G$7*pattern!$B$8+G$8*pattern!$B$9+G$9*pattern!$B$10 -> 8.226989875 | H12: =$B$10*(RAND()-0.5)+H$2*pattern!$B$3+H$3*pattern!$B$4+H$4*pattern!$B$5+H$5*pattern!$B$6+H$6*pattern!$B$7+H$7*pattern!$B$8+H$8*pattern!$B$9+H$9*pattern!$B$10 -> 4.494255478 | I12: =$B$10*(RAND()-0.5)+I$2*pattern!$B$3+I$3*pattern!$B$4+I$4*pattern!$B$5+I$5*pattern!$B$6+I$6*pattern!$B$7+I$7*pattern!$B$8+I$8*pattern!$B$9+I$9*pattern!$B$10 -> 5.922058242 | J12: =$B$10*(RAND()-0.5)+J$2*pattern!$B$3+J$3*pattern!$B$4+J$4*pattern!$B$5+J$5*pattern!$B$6+J$6*pattern!$B$7+J$7*pattern!$B$8+J$8*pattern!$B$9+J$9*pattern!$B$10 -> -0.4158333038 | K12: =$B$10*(RAND()-0.5)+K$2*pattern!$B$3+K$3*pattern!$B$4+K$4*pattern!$B$5+K$5*pattern!$B$6+K$6*pattern!$B$7+K$7*pattern!$B$8+K$8*pattern!$B$9+K$9*pattern!$B$10 -> 6.114626589 | L12: =$B$10*(RAND()-0.5)+L$2*pattern!$B$3+L$3*pattern!$B$4+L$4*pattern!$B$5+L$5*pattern!$B$6+L$6*pattern!$B$7+L$7*pattern!$B$8+L$8*pattern!$B$9+L$9*pattern!$B$10 -> 2.087538554 | M12: =$B$10*(RAND()-0.5)+M$2*pattern!$B$3+M$3*pattern!$B$4+M$4*pattern!$B$5+M$5*pattern!$B$6+M$6*pattern!$B$7+M$7*pattern!$B$8+M$8*pattern!$B$9+M$9*pattern!$B$10 -> 1.594956861
A13: [,2] | B13: =$B$10*(RAND()-0.5)+B$2*pattern!$C$3+B$3*pattern!$C$4+B$4*pattern!$C$5+B$5*pattern!$C$6+B$6*pattern!$C$7+B$7*pattern!$C$8+B$8*pattern!$C$9+B$9*pattern!$C$10 -> 2.253905132 | C13: =$B$10*(RAND()-0.5)+C$2*pattern!$C$3+C$3*pattern!$C$4+C$4*pattern!$C$5+C$5*pattern!$C$6+C$6*pattern!$C$7+C$7*pattern!$C$8+C$8*pattern!$C$9+C$9*pattern!$C$10 -> 1.27961083 | D13: =$B$10*(RAND()-0.5)+D$2*pattern!$C$3+D$3*pattern!$C$4+D$4*pattern!$C$5+D$5*pattern!$C$6+D$6*pattern!$C$7+D$7*pattern!$C$8+D$8*pattern!$C$9+D$9*pattern!$C$10 -> 0.5511437816 | E13: =$B$10*(RAND()-0.5)+E$2*pattern!$C$3+E$3*pattern!$C$4+E$4*pattern!$C$5+E$5*pattern!$C$6+E$6*pattern!$C$7+E$7*pattern!$C$8+E$8*pattern!$C$9+E$9*pattern!$C$10 -> 4.224937842 | F13: =$B$10*(RAND()-0.5)+F$2*pattern!$C$3+F$3*pattern!$C$4+F$4*pattern!$C$5+F$5*pattern!$C$6+F$6*pattern!$C$7+F$7*pattern!$C$8+F$8*pattern!$C$9+F$9*pattern!$C$10 -> 0.09928416616 | G13: =$B$10*(RAND()-0.5)+G$2*pattern!$C$3+G$3*pattern!$C$4+G$4*pattern!$C$5+G$5*pattern!$C$6+G$6*pattern!$C$7+G$7*pattern!$C$8+G$8*pattern!$C$9+G$9*pattern!$C$10 -> 3.923154146 | H13: =$B$10*(RAND()-0.5)+H$2*pattern!$C$3+H$3*pattern!$C$4+H$4*pattern!$C$5+H$5*pattern!$C$6+H$6*pattern!$C$7+H$7*pattern!$C$8+H$8*pattern!$C$9+H$9*pattern!$C$10 -> 1.579918349 | I13: =$B$10*(RAND()-0.5)+I$2*pattern!$C$3+I$3*pattern!$C$4+I$4*pattern!$C$5+I$5*pattern!$C$6+I$6*pattern!$C$7+I$7*pattern!$C$8+I$8*pattern!$C$9+I$9*pattern!$C$10 -> 2.802766629 | J13: =$B$10*(RAND()-0.5)+J$2*pattern!$C$3+J$3*pattern!$C$4+J$4*pattern!$C$5+J$5*pattern!$C$6+J$6*pattern!$C$7+J$7*pattern!$C$8+J$8*pattern!$C$9+J$9*pattern!$C$10 -> -0.4694187729 | K13: =$B$10*(RAND()-0.5)+K$2*pattern!$C$3+K$3*pattern!$C$4+K$4*pattern!$C$5+K$5*pattern!$C$6+K$6*pattern!$C$7+K$7*pattern!$C$8+K$8*pattern!$C$9+K$9*pattern!$C$10 -> 3.396320442 | L13: =$B$10*(RAND()-0.5)+L$2*pattern!$C$3+L$3*pattern!$C$4+L$4*pattern!$C$5+L$5*pattern!$C$6+L$6*pattern!$C$7+L$7*pattern!$C$8+L$8*pattern!$C$9+L$9*pattern!$C$10 -> 0.5455689405 | M13: =$B$10*(RAND()-0.5)+M$2*pattern!$C$3+M$3*pattern!$C$4+M$4*pattern!$C$5+M$5*pattern!$C$6+M$6*pattern!$C$7+M$7*pattern!$C$8+M$8*pattern!$C$9+M$9*pattern!$C$10 -> 1.228368633
A14: [,3] | B14: =$B$10*(RAND()-0.5)+B$2*pattern!$D$3+B$3*pattern!$D$4+B$4*pattern!$D$5+B$5*pattern!$D$6+B$6*pattern!$D$7+B$7*pattern!$D$8+B$8*pattern!$D$9+B$9*pattern!$D$10 -> 2.025319279 | C14: =$B$10*(RAND()-0.5)+C$2*pattern!$D$3+C$3*pattern!$D$4+C$4*pattern!$D$5+C$5*pattern!$D$6+C$6*pattern!$D$7+C$7*pattern!$D$8+C$8*pattern!$D$9+C$9*pattern!$D$10 -> 0.9752896975 | D14: =$B$10*(RAND()-0.5)+D$2*pattern!$D$3+D$3*pattern!$D$4+D$4*pattern!$D$5+D$5*pattern!$D$6+D$6*pattern!$D$7+D$7*pattern!$D$8+D$8*pattern!$D$9+D$9*pattern!$D$10 -> 1.4821263 | E14: =$B$10*(RAND()-0.5)+E$2*pattern!$D$3+E$3*pattern!$D$4+E$4*pattern!$D$5+E$5*pattern!$D$6+E$6*pattern!$D$7+E$7*pattern!$D$8+E$8*pattern!$D$9+E$9*pattern!$D$10 -> 3.886277936 | F14: =$B$10*(RAND()-0.5)+F$2*pattern!$D$3+F$3*pattern!$D$4+F$4*pattern!$D$5+F$5*pattern!$D$6+F$6*pattern!$D$7+F$7*pattern!$D$8+F$8*pattern!$D$9+F$9*pattern!$D$10 -> -0.2521570357 | G14: =$B$10*(RAND()-0.5)+G$2*pattern!$D$3+G$3*pattern!$D$4+G$4*pattern!$D$5+G$5*pattern!$D$6+G$6*pattern!$D$7+G$7*pattern!$D$8+G$8*pattern!$D$9+G$9*pattern!$D$10 -> 4.043009443 | H14: =$B$10*(RAND()-0.5)+H$2*pattern!$D$3+H$3*pattern!$D$4+H$4*pattern!$D$5+H$5*pattern!$D$6+H$6*pattern!$D$7+H$7*pattern!$D$8+H$8*pattern!$D$9+H$9*pattern!$D$10 -> 2.345809492 | I14: =$B$10*(RAND()-0.5)+I$2*pattern!$D$3+I$3*pattern!$D$4+I$4*pattern!$D$5+I$5*pattern!$D$6+I$6*pattern!$D$7+I$7*pattern!$D$8+I$8*pattern!$D$9+I$9*pattern!$D$10 -> 3.108371334 | J14: =$B$10*(RAND()-0.5)+J$2*pattern!$D$3+J$3*pattern!$D$4+J$4*pattern!$D$5+J$5*pattern!$D$6+J$6*pattern!$D$7+J$7*pattern!$D$8+J$8*pattern!$D$9+J$9*pattern!$D$10 -> -0.1538754096 | K14: =$B$10*(RAND()-0.5)+K$2*pattern!$D$3+K$3*pattern!$D$4+K$4*pattern!$D$5+K$5*pattern!$D$6+K$6*pattern!$D$7+K$7*pattern!$D$8+K$8*pattern!$D$9+K$9*pattern!$D$10 -> 2.578260684 | L14: =$B$10*(RAND()-0.5)+L$2*pattern!$D$3+L$3*pattern!$D$4+L$4*pattern!$D$5+L$5*pattern!$D$6+L$6*pattern!$D$7+L$7*pattern!$D$8+L$8*pattern!$D$9+L$9*pattern!$D$10 -> 1.157612744 | M14: =$B$10*(RAND()-0.5)+M$2*pattern!$D$3+M$3*pattern!$D$4+M$4*pattern!$D$5+M$5*pattern!$D$6+M$6*pattern!$D$7+M$7*pattern!$D$8+M$8*pattern!$D$9+M$9*pattern!$D$10 -> 0.5202164514
A15: [,4] | B15: =$B$10*(RAND()-0.5)+B$2*pattern!$E$3+B$3*pattern!$E$4+B$4*pattern!$E$5+B$5*pattern!$E$6+B$6*pattern!$E$7+B$7*pattern!$E$8+B$8*pattern!$E$9+B$9*pattern!$E$10 -> 1.957184723 | C15: =$B$10*(RAND()-0.5)+C$2*pattern!$E$3+C$3*pattern!$E$4+C$4*pattern!$E$5+C$5*pattern!$E$6+C$6*pattern!$E$7+C$7*pattern!$E$8+C$8*pattern!$E$9+C$9*pattern!$E$10 -> 0.8193041301 | D15: =$B$10*(RAND()-0.5)+D$2*pattern!$E$3+D$3*pattern!$E$4+D$4*pattern!$E$5+D$5*pattern!$E$6+D$6*pattern!$E$7+D$7*pattern!$E$8+D$8*pattern!$E$9+D$9*pattern!$E$10 -> 2.227273146 | E15: =$B$10*(RAND()-0.5)+E$2*pattern!$E$3+E$3*pattern!$E$4+E$4*pattern!$E$5+E$5*pattern!$E$6+E$6*pattern!$E$7+E$7*pattern!$E$8+E$8*pattern!$E$9+E$9*pattern!$E$10 -> 4.468424619 | F15: =$B$10*(RAND()-0.5)+F$2*pattern!$E$3+F$3*pattern!$E$4+F$4*pattern!$E$5+F$5*pattern!$E$6+F$6*pattern!$E$7+F$7*pattern!$E$8+F$8*pattern!$E$9+F$9*pattern!$E$10 -> 0.4486024675 | G15: =$B$10*(RAND()-0.5)+G$2*pattern!$E$3+G$3*pattern!$E$4+G$4*pattern!$E$5+G$5*pattern!$E$6+G$6*pattern!$E$7+G$7*pattern!$E$8+G$8*pattern!$E$9+G$9*pattern!$E$10 -> 3.76112217 | H15: =$B$10*(RAND()-0.5)+H$2*pattern!$E$3+H$3*pattern!$E$4+H$4*pattern!$E$5+H$5*pattern!$E$6+H$6*pattern!$E$7+H$7*pattern!$E$8+H$8*pattern!$E$9+H$9*pattern!$E$10 -> 4.211886992 | I15: =$B$10*(RAND()-0.5)+I$2*pattern!$E$3+I$3*pattern!$E$4+I$4*pattern!$E$5+I$5*pattern!$E$6+I$6*pattern!$E$7+I$7*pattern!$E$8+I$8*pattern!$E$9+I$9*pattern!$E$10 -> 1.84684112 | J15: =$B$10*(RAND()-0.5)+J$2*pattern!$E$3+J$3*pattern!$E$4+J$4*pattern!$E$5+J$5*pattern!$E$6+J$6*pattern!$E$7+J$7*pattern!$E$8+J$8*pattern!$E$9+J$9*pattern!$E$10 -> 0.4816552165 | K15: =$B$10*(RAND()-0.5)+K$2*pattern!$E$3+K$3*pattern!$E$4+K$4*pattern!$E$5+K$5*pattern!$E$6+K$6*pattern!$E$7+K$7*pattern!$E$8+K$8*pattern!$E$9+K$9*pattern!$E$10 -> 1.616065299 | L15: =$B$10*(RAND()-0.5)+L$2*pattern!$E$3+L$3*pattern!$E$4+L$4*pattern!$E$5+L$5*pattern!$E$6+L$6*pattern!$E$7+L$7*pattern!$E$8+L$8*pattern!$E$9+L$9*pattern!$E$10 -> 2.478140232 | M15: =$B$10*(RAND()-0.5)+M$2*pattern!$E$3+M$3*pattern!$E$4+M$4*pattern!$E$5+M$5*pattern!$E$6+M$6*pattern!$E$7+M$7*pattern!$E$8+M$8*pattern!$E$9+M$9*pattern!$E$10 -> 2.292292395
A16: [,5] | B16: =$B$10*(RAND()-0.5)+B$2*pattern!$F$3+B$3*pattern!$F$4+B$4*pattern!$F$5+B$5*pattern!$F$6+B$6*pattern!$F$7+B$7*pattern!$F$8+B$8*pattern!$F$9+B$9*pattern!$F$10 -> -0.4184674259 | C16: =$B$10*(RAND()-0.5)+C$2*pattern!$F$3+C$3*pattern!$F$4+C$4*pattern!$F$5+C$5*pattern!$F$6+C$6*pattern!$F$7+C$7*pattern!$F$8+C$8*pattern!$F$9+C$9*pattern!$F$10 -> 2.784536067 | D16: =$B$10*(RAND()-0.5)+D$2*pattern!$F$3+D$3*pattern!$F$4+D$4*pattern!$F$5+D$5*pattern!$F$6+D$6*pattern!$F$7+D$7*pattern!$F$8+D$8*pattern!$F$9+D$9*pattern!$F$10 -> 1.541466007 | E16: =$B$10*(RAND()-0.5)+E$2*pattern!$F$3+E$3*pattern!$F$4+E$4*pattern!$F$5+E$5*pattern!$F$6+E$6*pattern!$F$7+E$7*pattern!$F$8+E$8*pattern!$F$9+E$9*pattern!$F$10 -> 3.695030574 | F16: =$B$10*(RAND()-0.5)+F$2*pattern!$F$3+F$3*pattern!$F$4+F$4*pattern!$F$5+F$5*pattern!$F$6+F$6*pattern!$F$7+F$7*pattern!$F$8+F$8*pattern!$F$9+F$9*pattern!$F$10 -> -0.4837590026 | G16: =$B$10*(RAND()-0.5)+G$2*pattern!$F$3+G$3*pattern!$F$4+G$4*pattern!$F$5+G$5*pattern!$F$6+G$6*pattern!$F$7+G$7*pattern!$F$8+G$8*pattern!$F$9+G$9*pattern!$F$10 -> 4.088014581 | H16: =$B$10*(RAND()-0.5)+H$2*pattern!$F$3+H$3*pattern!$F$4+H$4*pattern!$F$5+H$5*pattern!$F$6+H$6*pattern!$F$7+H$7*pattern!$F$8+H$8*pattern!$F$9+H$9*pattern!$F$10 -> 1.536718272 | I16: =$B$10*(RAND()-0.5)+I$2*pattern!$F$3+I$3*pattern!$F$4+I$4*pattern!$F$5+I$5*pattern!$F$6+I$6*pattern!$F$7+I$7*pattern!$F$8+I$8*pattern!$F$9+I$9*pattern!$F$10 -> 1.715224632 | J16: =$B$10*(RAND()-0.5)+J$2*pattern!$F$3+J$3*pattern!$F$4+J$4*pattern!$F$5+J$5*pattern!$F$6+J$6*pattern!$F$7+J$7*pattern!$F$8+J$8*pattern!$F$9+J$9*pattern!$F$10 -> -0.4694572403 | K16: =$B$10*(RAND()-0.5)+K$2*pattern!$F$3+K$3*pattern!$F$4+K$4*pattern!$F$5+K$5*pattern!$F$6+K$6*pattern!$F$7+K$7*pattern!$F$8+K$8*pattern!$F$9+K$9*pattern!$F$10 -> 2.793749394 | L16: =$B$10*(RAND()-0.5)+L$2*pattern!$F$3+L$3*pattern!$F$4+L$4*pattern!$F$5+L$5*pattern!$F$6+L$6*pattern!$F$7+L$7*pattern!$F$8+L$8*pattern!$F$9+L$9*pattern!$F$10 -> 0.5720822371 | M16: =$B$10*(RAND()-0.5)+M$2*pattern!$F$3+M$3*pattern!$F$4+M$4*pattern!$F$5+M$5*pattern!$F$6+M$6*pattern!$F$7+M$7*pattern!$F$8+M$8*pattern!$F$9+M$9*pattern!$F$10 -> 1.381473635
A17: [,6] | B17: =$B$10*(RAND()-0.5)+B$2*pattern!$G$3+B$3*pattern!$G$4+B$4*pattern!$G$5+B$5*pattern!$G$6+B$6*pattern!$G$7+B$7*pattern!$G$8+B$8*pattern!$G$9+B$9*pattern!$G$10 -> 2.338387332 | C17: =$B$10*(RAND()-0.5)+C$2*pattern!$G$3+C$3*pattern!$G$4+C$4*pattern!$G$5+C$5*pattern!$G$6+C$6*pattern!$G$7+C$7*pattern!$G$8+C$8*pattern!$G$9+C$9*pattern!$G$10 -> 0.9220401589 | D17: =$B$10*(RAND()-0.5)+D$2*pattern!$G$3+D$3*pattern!$G$4+D$4*pattern!$G$5+D$5*pattern!$G$6+D$6*pattern!$G$7+D$7*pattern!$G$8+D$8*pattern!$G$9+D$9*pattern!$G$10 -> 1.278306203 | E17: =$B$10*(RAND()-0.5)+E$2*pattern!$G$3+E$3*pattern!$G$4+E$4*pattern!$G$5+E$5*pattern!$G$6+E$6*pattern!$G$7+E$7*pattern!$G$8+E$8*pattern!$G$9+E$9*pattern!$G$10 -> 4.436323139 | F17: =$B$10*(RAND()-0.5)+F$2*pattern!$G$3+F$3*pattern!$G$4+F$4*pattern!$G$5+F$5*pattern!$G$6+F$6*pattern!$G$7+F$7*pattern!$G$8+F$8*pattern!$G$9+F$9*pattern!$G$10 -> -0.2336041174 | G17: =$B$10*(RAND()-0.5)+G$2*pattern!$G$3+G$3*pattern!$G$4+G$4*pattern!$G$5+G$5*pattern!$G$6+G$6*pattern!$G$7+G$7*pattern!$G$8+G$8*pattern!$G$9+G$9*pattern!$G$10 -> 4.452183026 | H17: =$B$10*(RAND()-0.5)+H$2*pattern!$G$3+H$3*pattern!$G$4+H$4*pattern!$G$5+H$5*pattern!$G$6+H$6*pattern!$G$7+H$7*pattern!$G$8+H$8*pattern!$G$9+H$9*pattern!$G$10 -> 1.894813214 | I17: =$B$10*(RAND()-0.5)+I$2*pattern!$G$3+I$3*pattern!$G$4+I$4*pattern!$G$5+I$5*pattern!$G$6+I$6*pattern!$G$7+I$7*pattern!$G$8+I$8*pattern!$G$9+I$9*pattern!$G$10 -> 2.988346554 | J17: =$B$10*(RAND()-0.5)+J$2*pattern!$G$3+J$3*pattern!$G$4+J$4*pattern!$G$5+J$5*pattern!$G$6+J$6*pattern!$G$7+J$7*pattern!$G$8+J$8*pattern!$G$9+J$9*pattern!$G$10 -> 0.4007158884 | K17: =$B$10*(RAND()-0.5)+K$2*pattern!$G$3+K$3*pattern!$G$4+K$4*pattern!$G$5+K$5*pattern!$G$6+K$6*pattern!$G$7+K$7*pattern!$G$8+K$8*pattern!$G$9+K$9*pattern!$G$10 -> 1.938459421 | L17: =$B$10*(RAND()-0.5)+L$2*pattern!$G$3+L$3*pattern!$G$4+L$4*pattern!$G$5+L$5*pattern!$G$6+L$6*pattern!$G$7+L$7*pattern!$G$8+L$8*pattern!$G$9+L$9*pattern!$G$10 -> 2.461969934 | M17: =$B$10*(RAND()-0.5)+M$2*pattern!$G$3+M$3*pattern!$G$4+M$4*pattern!$G$5+M$5*pattern!$G$6+M$6*pattern!$G$7+M$7*pattern!$G$8+M$8*pattern!$G$9+M$9*pattern!$G$10 -> 1.999399875
A18: [,7] | B18: =$B$10*(RAND()-0.5)+B$2*pattern!$H$3+B$3*pattern!$H$4+B$4*pattern!$H$5+B$5*pattern!$H$6+B$6*pattern!$H$7+B$7*pattern!$H$8+B$8*pattern!$H$9+B$9*pattern!$H$10 -> 2.00217058 | C18: =$B$10*(RAND()-0.5)+C$2*pattern!$H$3+C$3*pattern!$H$4+C$4*pattern!$H$5+C$5*pattern!$H$6+C$6*pattern!$H$7+C$7*pattern!$H$8+C$8*pattern!$H$9+C$9*pattern!$H$10 -> 0.9883204874 | D18: =$B$10*(RAND()-0.5)+D$2*pattern!$H$3+D$3*pattern!$H$4+D$4*pattern!$H$5+D$5*pattern!$H$6+D$6*pattern!$H$7+D$7*pattern!$H$8+D$8*pattern!$H$9+D$9*pattern!$H$10 -> 0.6314377052 | E18: =$B$10*(RAND()-0.5)+E$2*pattern!$H$3+E$3*pattern!$H$4+E$4*pattern!$H$5+E$5*pattern!$H$6+E$6*pattern!$H$7+E$7*pattern!$H$8+E$8*pattern!$H$9+E$9*pattern!$H$10 -> 4.048780595 | F18: =$B$10*(RAND()-0.5)+F$2*pattern!$H$3+F$3*pattern!$H$4+F$4*pattern!$H$5+F$5*pattern!$H$6+F$6*pattern!$H$7+F$7*pattern!$H$8+F$8*pattern!$H$9+F$9*pattern!$H$10 -> -0.332271772 | G18: =$B$10*(RAND()-0.5)+G$2*pattern!$H$3+G$3*pattern!$H$4+G$4*pattern!$H$5+G$5*pattern!$H$6+G$6*pattern!$H$7+G$7*pattern!$H$8+G$8*pattern!$H$9+G$9*pattern!$H$10 -> 3.928385292 | H18: =$B$10*(RAND()-0.5)+H$2*pattern!$H$3+H$3*pattern!$H$4+H$4*pattern!$H$5+H$5*pattern!$H$6+H$6*pattern!$H$7+H$7*pattern!$H$8+H$8*pattern!$H$9+H$9*pattern!$H$10 -> 2.158810519 | I18: =$B$10*(RAND()-0.5)+I$2*pattern!$H$3+I$3*pattern!$H$4+I$4*pattern!$H$5+I$5*pattern!$H$6+I$6*pattern!$H$7+I$7*pattern!$H$8+I$8*pattern!$H$9+I$9*pattern!$H$10 -> 3.33315781 | J18: =$B$10*(RAND()-0.5)+J$2*pattern!$H$3+J$3*pattern!$H$4+J$4*pattern!$H$5+J$5*pattern!$H$6+J$6*pattern!$H$7+J$7*pattern!$H$8+J$8*pattern!$H$9+J$9*pattern!$H$10 -> -0.03524341219 | K18: =$B$10*(RAND()-0.5)+K$2*pattern!$H$3+K$3*pattern!$H$4+K$4*pattern!$H$5+K$5*pattern!$H$6+K$6*pattern!$H$7+K$7*pattern!$H$8+K$8*pattern!$H$9+K$9*pattern!$H$10 -> 2.492661058 | L18: =$B$10*(RAND()-0.5)+L$2*pattern!$H$3+L$3*pattern!$H$4+L$4*pattern!$H$5+L$5*pattern!$H$6+L$6*pattern!$H$7+L$7*pattern!$H$8+L$8*pattern!$H$9+L$9*pattern!$H$10 -> 1.860789554 | M18: =$B$10*(RAND()-0.5)+M$2*pattern!$H$3+M$3*pattern!$H$4+M$4*pattern!$H$5+M$5*pattern!$H$6+M$6*pattern!$H$7+M$7*pattern!$H$8+M$8*pattern!$H$9+M$9*pattern!$H$10 -> 2.246599066
A19: [,8] | B19: =$B$10*(RAND()-0.5)+B$2*pattern!$I$3+B$3*pattern!$I$4+B$4*pattern!$I$5+B$5*pattern!$I$6+B$6*pattern!$I$7+B$7*pattern!$I$8+B$8*pattern!$I$9+B$9*pattern!$I$10 -> 2.355772954 | C19: =$B$10*(RAND()-0.5)+C$2*pattern!$I$3+C$3*pattern!$I$4+C$4*pattern!$I$5+C$5*pattern!$I$6+C$6*pattern!$I$7+C$7*pattern!$I$8+C$8*pattern!$I$9+C$9*pattern!$I$10 -> 0.6713739401 | D19: =$B$10*(RAND()-0.5)+D$2*pattern!$I$3+D$3*pattern!$I$4+D$4*pattern!$I$5+D$5*pattern!$I$6+D$6*pattern!$I$7+D$7*pattern!$I$8+D$8*pattern!$I$9+D$9*pattern!$I$10 -> 1.841030406 | E19: =$B$10*(RAND()-0.5)+E$2*pattern!$I$3+E$3*pattern!$I$4+E$4*pattern!$I$5+E$5*pattern!$I$6+E$6*pattern!$I$7+E$7*pattern!$I$8+E$8*pattern!$I$9+E$9*pattern!$I$10 -> 3.565574316 | F19: =$B$10*(RAND()-0.5)+F$2*pattern!$I$3+F$3*pattern!$I$4+F$4*pattern!$I$5+F$5*pattern!$I$6+F$6*pattern!$I$7+F$7*pattern!$I$8+F$8*pattern!$I$9+F$9*pattern!$I$10 -> 0.1928881899 | G19: =$B$10*(RAND()-0.5)+G$2*pattern!$I$3+G$3*pattern!$I$4+G$4*pattern!$I$5+G$5*pattern!$I$6+G$6*pattern!$I$7+G$7*pattern!$I$8+G$8*pattern!$I$9+G$9*pattern!$I$10 -> 4.247718579 | H19: =$B$10*(RAND()-0.5)+H$2*pattern!$I$3+H$3*pattern!$I$4+H$4*pattern!$I$5+H$5*pattern!$I$6+H$6*pattern!$I$7+H$7*pattern!$I$8+H$8*pattern!$I$9+H$9*pattern!$I$10 -> 1.959367463 | I19: =$B$10*(RAND()-0.5)+I$2*pattern!$I$3+I$3*pattern!$I$4+I$4*pattern!$I$5+I$5*pattern!$I$6+I$6*pattern!$I$7+I$7*pattern!$I$8+I$8*pattern!$I$9+I$9*pattern!$I$10 -> 1.806114165 | J19: =$B$10*(RAND()-0.5)+J$2*pattern!$I$3+J$3*pattern!$I$4+J$4*pattern!$I$5+J$5*pattern!$I$6+J$6*pattern!$I$7+J$7*pattern!$I$8+J$8*pattern!$I$9+J$9*pattern!$I$10 -> -0.4733215804 | K19: =$B$10*(RAND()-0.5)+K$2*pattern!$I$3+K$3*pattern!$I$4+K$4*pattern!$I$5+K$5*pattern!$I$6+K$6*pattern!$I$7+K$7*pattern!$I$8+K$8*pattern!$I$9+K$9*pattern!$I$10 -> 3.392157745 | L19: =$B$10*(RAND()-0.5)+L$2*pattern!$I$3+L$3*pattern!$I$4+L$4*pattern!$I$5+L$5*pattern!$I$6+L$6*pattern!$I$7+L$7*pattern!$I$8+L$8*pattern!$I$9+L$9*pattern!$I$10 -> 0.8999764654 | M19: =$B$10*(RAND()-0.5)+M$2*pattern!$I$3+M$3*pattern!$I$4+M$4*pattern!$I$5+M$5*pattern!$I$6+M$6*pattern!$I$7+M$7*pattern!$I$8+M$8*pattern!$I$9+M$9*pattern!$I$10 -> 1.115341453
A24: row 1 | B24: 0.1932952867 | C24: -0.1784357238 | D24: 1.121352632 | E24: 1.085414952 | F24: 0.04813228033 | G24: 1.040151932 | H24: 1.04766565 | I24: 0.576227266 | J24: -0.1906848669 | K24: -0.07503961757 | L24: 1.190596673 | M24: 0.8427308945
A25: row 2 | B25: 0.1242002876 | C25: 1.468407328 | D25: -0.4472085427 | E25: 0.7792288989 | F25: -0.3013785765 | G25: 1.056688444 | H25: 0.06977924594 | I25: 0.812855673 | J25: 0.1092479682 | K25: 0.8443535366 | L25: -0.001040701265 | M25: 0.1930228937
A26: row 3 | B26: -0.1553438473 | C26: 0.732616688 | D26: 0.2028968836 | E26: 0.9031753462 | F26: -0.09683498391 | G26: 1.007138623 | H26: 0.3880120385 | I26: 0.9001213393 | J26: -0.2819177111 | K26: 1.358341468 | L26: -0.2795460732 | M26: -0.04640139447
A27: row 4 | B27: -0.2345984059 | C27: 0.9501567551 | D27: 0.6382352175 | E27: 1.093609166 | F27: -0.1022873382 | G27: 0.884857536 | H27: 0.5577974193 | I27: -0.06210841784 | J27: -0.01231092134 | K27: 0.9799632004 | L27: 0.03531496549 | M27: 0.02121044592
A28: row 5 | B28: 0.8151019196 | C28: 0.1841687949 | D28: 0.1698750453 | E28: 1.057538116 | F28: 0.1086922949 | G28: 0.6128018844 | H28: 0.9111282396 | I28: 0.7745238595 | J28: 0.427245695 | K28: 0.9010500433 | L28: -0.1546192897 | M28: 0.1244947293
A29: row 6 | B29: 0.9056148083 | C29: -0.06519010316 | D29: -0.06741693516 | E29: 1.159268027 | F29: 0.09882208323 | G29: 1.222002737 | H29: -0.1045041676 | I29: 0.6217318149 | J29: 0.05574525861 | K29: 0.9525603955 | L29: 0.2016733106 | M29: 0.1228938527
A30: row 7 | B30: 1.142032388 | C30: 0.1097627719 | D30: -0.05142969172 | E30: 0.7403106316 | F30: 0.2254637419 | G30: 1.036209567 | H30: 0.03522434188 | I30: 0.8476601976 | J30: -0.3284216054 | K30: 1.074404088 | L30: -0.01336387548 | M30: -0.1639895438
A31: row 8 | B31: 0.9074691868 | C31: 0.04052252136 | D31: 0.1607356872 | E31: 1.218314481 | F31: -0.4490186127 | G31: 1.107446091 | H31: 1.046801762 | I31: 1.092828159 | J31: 0.0166381923 | K31: -0.3002963226 | L31: 1.143631573 | M31: 1.258725172

Sheet pattern
A1: HADAMARD(8)
A2: carrier / pattern | B2: [,1] | C2: [,2] | D2: [,3] | E2: [,4] | F2: [,5] | G2: [,6] | H2: [,7] | I2: [,8]
A3: [1,] | B3: 1 | C3: 1 | D3: 1 | E3: 1 | F3: 1 | G3: 1 | H3: 1 | I3: 1
A4: [2,] | B4: 1 | C4: 0 | D4: 1 | E4: 0 | F4: 1 | G4: 0 | H4: 1 | I4: 0
A5: [3,] | B5: 1 | C5: 1 | D5: 0 | E5: 0 | F5: 1 | G5: 1 | H5: 0 | I5: 0
A6: [4,] | B6: 1 | C6: 0 | D6: 0 | E6: 1 | F6: 1 | G6: 0 | H6: 0 | I6: 1
A7: [5,] | B7: 1 | C7: 1 | D7: 1 | E7: 1 | F7: 0 | G7: 0 | H7: 0 | I7: 0
A8: [6,] | B8: 1 | C8: 0 | D8: 1 | E8: 0 | F8: 0 | G8: 1 | H8: 0 | I8: 1
A9: [7,] | B9: 1 | C9: 1 | D9: 0 | E9: 0 | F9: 0 | G9: 0 | H9: 1 | I9: 1
A10: [8,] | B10: 1 | C10: 0 | D10: 0 | E10: 1 | F10: 0 | G10: 1 | H10: 1 | I10: 0

Sheet GEsolver
A1: Gaussian Elimination Solver
B2: [,1] | C2: [,2] | D2: [,3] | E2: [,4] | F2: [,5] | G2: [,6] | H2: [,7] | I2: [,8] | J2: b | K2: [,9] | R2: X
A3: [1,] | B3: 1 | C3: 0 | D3: 0 | E3: 0 | F3: 0 | G3: 0 | H3: 0 | I3: 0 | J3: 2.35268705 | K3: =J3 -> 2.35268705 | L3: =K3-K4 -> 0.7568346856 | M3: =L3-K5 -> -0.3127099937 | N3: =M3+N6 -> 0.9672256239 | O3: =N3-O7 -> -0.3748985861 | P3: =O3+P8 -> 1.006720438 | Q3: =P3+Q9 -> 2.101456066 | R3: =Q3-R10 -> 0.8427308945
A4: [2,] | B4: 0 | C4: 1 | D4: 0 | E4: 0 | F4: 0 | G4: 0 | H4: 0 | I4: 0 | J4: 0.7568346856 | K4: =(J4-K3)*-1 -> 1.595852364 | N4: =K4-N6 -> 0.3159167464 | P4: =N4-P8 -> -1.065702278 | R4: =P4+R10 -> 0.1930228937
A5: [3,] | B5: 0 | C5: 0 | D5: 1 | E5: 0 | F5: 0 | G5: 0 | H5: 0 | I5: -1 | J5: 1.28314237 | K5: =(J5-J3)*-1 -> 1.069544679 | N5: =K5-N6 -> -0.2103909383 | Q5: =N5-Q9 -> -1.305126566 | R5: =Q5+R10 -> -0.04640139447
A6: [4,] | B6: 0 | C6: 0 | D6: 0 | E6: 1 | F6: 0 | G6: 0 | H6: 0 | I6: 1 | J6: 2.247161241 | K6: =J6-J3 -> -0.1055258081 | L6: =K6+K4 -> 1.490326556 | M6: =L6+K5 -> 2.559871235 | N6: =M6*0.5 -> 1.279935618 | R6: =N6-R10 -> 0.02121044592
A7: [5,] | B7: 0 | C7: 0 | D7: 0 | E7: 0 | F7: 1 | G7: 0 | H7: 0 | I7: -1 | J7: 1.01056284 | K7: =J7-J3 -> -1.34212421 | O7: =-K7 -> 1.34212421 | P7: =O7-P8 -> -0.03949481449 | Q7: =P7-Q9 -> -1.134230442 | R7: =Q7+R10 -> 0.1244947293
A8: [6,] | B8: 0 | C8: 0 | D8: 0 | E8: 0 | F8: 0 | G8: 1 | H8: 0 | I8: 1 | J8: 2.177948524 | K8: =J8-J3 -> -0.1747385251 | L8: =K8+K4 -> 1.421113839 | O8: =L8+O7 -> 2.763238049 | P8: =O8*0.5 -> 1.381619024 | R8: =P8-R10 -> 0.1228938527
A9: [7,] | B9: 0 | C9: 0 | D9: 0 | E9: 0 | F9: 0 | G9: 0 | H9: 1 | I9: 1 | J9: 2.130489416 | K9: =J9-J3 -> -0.2221976335 | M9: =K9+K5 -> 0.8473470458 | O9: =M9+O7 -> 2.189471256 | Q9: =O9*0.5 -> 1.094735628 | R9: =Q9-R10 -> -0.1639895438
A10: [8,] | B10: 0 | C10: 0 | D10: 0 | E10: 0 | F10: 0 | G10: 0 | H10: 0 | I10: 1 | J10: 0.8228456494 | K10: =J10-J3 -> -1.5298414 | L10: =K10+K4 -> 0.06601096378 | M10: =L10+K5 -> 1.135555643 | N10: =M10-2*N6 -> -1.424315592 | O10: =N10+O7 -> -0.0821913822 | P10: =O10-2*P8 -> -2.845429431 | Q10: =P10-2*Q9 -> -5.034900687 | R10: =Q10*-0.25 -> 1.258725172
A12: Note: GE row reductions in columns J::R
